Cogmind - Beta 14 @@@ ROGUE MODE // 2024.08.31 @ 19:23:56 Player: Zaros426 Result: Destroyed by X-57 Shotgunner with High-powered Shotgun Performance ------------- Evolutions (3) 1500 Regions Visited (8) 1600 Robots Destroyed (128) 640 Value Destroyed (3646) 3646 Prototype IDs (34) 680 Alien Tech Used (0) 0 Bonus (602) 602 TOTAL SCORE: 8668 Bonus ------- High Alert Combat Kills 109 Follower Combat Kills 193 Aligned with FarCom 300 Cogmind --------- Core Integrity 0/700 Matter 46/300 Energy 74/300 System Corruption 16% Temperature Cool (0) Movement Treading (400) Ox3 Location -7/Factory Parts ------- > --- POWER (1) -------- Enhanced Nuclear Core > --- PROPULSION (3) --- Medium Treads Centrium Wheel > --- UTILITY (7) ------ Huge Storage Unit Improved Signal Interpreter Improved Targeting Computer Advanced Targeting Computer Hacking Suite System Shield > --- WEAPON (2) ------- Plasma Cutter Heavy Flail > --- INVENTORY (25) --- Advanced Treads Medium Treads Armored Huge Wheel Huge Storage Unit Structural Scanner Visual Processing Unit System Shield Recalibrator PSU Rigger Remote Datajack Heavy Flail Peak State ------------ > --- POWER ------------ Improved Deuterium Engine > --- PROPULSION ------- Armored Treads Armored Treads Centrium Wheel > --- UTILITY ---------- Huge Storage Unit Improved Signal Interpreter Improved Targeting Computer Advanced Targeting Computer Hacking Suite System Shield PSU Rigger > --- WEAPON ----------- Advanced Assault Cannon Advanced Assault Cannon > --- INVENTORY -------- Enhanced Nuclear Core Armored Treads Armored Treads Armored Treads Advanced Treads Medium Treads Medium Treads Armored Huge Wheel Armored Huge Wheel Centrium Wheel Huge Storage Unit Structural Scanner Visual Processing Unit Improved Sensor Array Signal Interpreter System Shield Gatling Laser Improved Light Cannon Mini Grenade Launcher Mini Grenade Launcher Datajack Plasma Cutter [Rating: 55] Favorites ----------- Power Heavy Ion Engine Engine Heavy Ion Engine Power Core Nuclear Core Propulsion Light Treads Treads Light Treads Wheel Compact Wheel Utility Huge Storage Unit Device PSU Rigger Storage Huge Storage Unit Processor Improved Targeting Computer Hackware System Shield Protection Light Armor Plating Weapon Light EM Pulse Cannon Energy Gun EM Shotgun Energy Cannon Light EM Pulse Cannon Ballistic Gun High-powered Shotgun Ballistic Cannon Flak Cannon Launcher Mini Grenade Launcher Special Weapon Plasma Cutter Impact Weapon Maul Build | -11 -10 -10 -9 -9 -9 -8 -8 -7 ------- Run | Yrd Mat Min Mat Min Exi Min Mat Fac Slots Evolved 6 | . . . 2 . . . 2 2 Power . | . . . . . . . . . Propulsion 1 | . . . 1 . . . . . Utility 5 | . . . 1 . . . 2 2 Weapon . | . . . . . . . . . Parts Attached 139 | 7 11 3 21 3 3 1 53 37 Power 12 | 1 1 . 1 . 1 . 2 6 Engine 9 | 1 1 . 1 . 1 . 2 3 Core 3 | . . . . . . . . 3 Reactor . | . . . . . . . . . Propulsion 32 | 2 . 2 6 2 . . 7 13 Treads 25 | 1 . 1 6 2 . . 7 8 Leg . | . . . . . . . . . Wheel 7 | 1 . 1 . . . . . 5 Hover . | . . . . . . . . . Flight . | . . . . . . . . . Utility 47 | 2 3 1 4 1 . 1 26 9 Device 19 | 1 . . . . . . 12 6 Storage 7 | 1 2 1 . . . . 3 . Processor 5 | . 1 . 1 . . 1 1 1 Hackware 3 | . . . 1 . . . 1 1 Protection 13 | . . . 2 1 . . 9 1 Artifact . | . . . . . . . . . Weapon 48 | 2 7 . 10 . 2 . 18 9 Energy Gun 9 | . 2 . 3 . . . 2 2 Energy Cannon 6 | . . . 4 . . . 1 1 Ballistic Gun 14 | 2 5 . 1 . 1 . 4 1 Ballistic Cannon 12 | . . . 2 . 1 . 7 2 Launcher 2 | . . . . . . . 1 1 Special Weapon 1 | . . . . . . . . 1 Impact Weapon 4 | . . . . . . . 3 1 Slashing Weapon . | . . . . . . . . . Piercing Weapon . | . . . . . . . . . Special Melee Weapon . | . . . . . . . . . Unidentified Prototypes 7 | . 1 . 1 . . . 3 2 Parts Lost 23 | . . . 2 . . . 7 14 Power 5 | . . . . . . . 1 4 Propulsion 5 | . . . . . . . 1 4 Utility 6 | . . . 1 . . . 4 1 Weapon 7 | . . . 1 . . . 1 5 Highest Loss Streak 10 | . . . 1 . . . 2 10 To Critical Strikes . | . . . . . . . . . Average Slot Usage (%) 96 | . 99 100 98 100 92 88 95 93 Engine 10 | . 14 14 11 11 11 11 9 5 Treads 18 | . 14 14 21 22 22 22 19 15 Wheel 10 | . 14 14 11 11 11 11 7 5 Device 3 | . . . . . . . 6 9 Storage 10 | . 14 14 11 11 11 11 9 7 Processor 14 | . 13 14 10 11 11 20 17 22 Hackware 3 | . . . 3 . . . 5 12 Protection 4 | . . . 7 10 11 1 5 . Energy Gun 4 | . 10 28 4 . . . . . Energy Cannon 6 | . . . 15 22 8 . . 1 Ballistic Gun 4 | . 17 . . . 6 11 6 . Ballistic Cannon 2 | . . . 1 . . . 5 2 Impact Weapon 1 | . . . . . . . 2 4 Peak Build Rating 55 | 7 15 15 20 21 33 35 44 55 Average Rating 25 | 5 13 15 18 19 27 33 33 43 On Entrance 20 | . 7 15 15 20 19 33 34 38 Naked Turns . | . . . . . . . . . Heaviest Build 110 | 13 94 94 103 99 101 101 110 104 Greatest Support 60 | 20 16 16 16 16 16 16 60 60 Greatest Overweight (x) 6 | . 5 5 6 6 6 6 6 6 Average Overweight (x) 4 | . 3 4 5 5 5 6 5 3 Largest Inventory Capacity 25 | 8 25 25 25 25 25 25 25 25 Average Capacity 24 | 7 21 23 25 25 25 25 25 25 Most Carried 25 | 4 20 23 25 25 25 25 25 25 Average Carried 22 | 2 15 21 24 24 24 24 22 23 Final Capacity 25 | 8 20 25 25 25 25 25 25 25 Final Carried 25 | 4 20 23 25 25 25 25 21 12 Class Distribution -------------------- 72% | Mutant 14% | Scavenger-Mutant 8% | Hacker-Mutant 4% | Assassin Dominant Class ---------------- Mutant | -10/Materials Mutant | -10/Mines Mutant | -9/Materials Mutant | -9/Mines Mutant | -9/Exiles Mutant | -8/Mines Mutant | -8/Materials Hacker-Mutant | -7/Factory Resources | -11 -10 -10 -9 -9 -9 -8 -8 -7 ----------- Run | Yrd Mat Min Mat Min Exi Min Mat Fac Matter Collected 2616 | 288 302 30 258 30 . 40 1170 498 Remotely . | . . . . . . . . . Salvage Created 4186 | 132 487 359 814 157 . 38 1515 684 Parts 247 | 10 37 11 44 8 . 2 85 50 Haulers Intercepted 7 | . 2 . 1 . . . 3 1 Recyclers Shooed 6 | 2 2 . 1 . . . 1 . Parts Field Recycled . | . . . . . . . . . Retrieved Matter . | . . . . . . . . . Parts Self-Destructed . | . . . . . . . . . Prevented . | . . . . . . . . . Kills | -11 -10 -10 -9 -9 -9 -8 -8 -7 ------- Run | Yrd Mat Min Mat Min Exi Min Mat Fac Combat Hostiles Destroyed 90 | . 10 4 10 5 . 3 34 24 Melee 3 | . . . . . . . 2 1 Guns 30 | . 9 2 1 . . 3 11 4 Cannons 43 | . . . 8 5 . . 19 11 AOE 11 | . . 2 1 . . . . 8 Classes Destroyed 15 | 2 5 . 4 1 . . . 3 Worker 5 | . 1 . . . . . 3 1 Builder 3 | . . . 1 . . . 1 1 Tunneler 3 | 2 . . . . . . 1 . Hauler 7 | . 2 . 1 . . . 3 1 Recycler 8 | 1 1 2 2 . . . 2 . Mechanic 2 | . . . 1 . . . . 1 Operator 1 | . . . 1 . . . . . Watcher 11 | . 3 . 3 . . . 5 . Swarmer 29 | . 6 . . . . 3 11 9 Grunt 39 | . 4 4 7 3 . . 17 4 Protector 1 | . . . . . . . . 1 Sentry 11 | . . . 3 . . . 6 2 Hunter 3 | . . . . . . . . 3 Programmer 5 | . . . . . . . . 5 Assembled 2 | . . . . 2 . . . . Best Kill Streak 7 | 2 4 2 5 3 . 3 7 7 Combat Bots Only 6 | . 2 2 3 3 . 3 6 6 Max Kills in Single Turn 3 | 1 1 2 3 1 . 1 2 1 Gunslinging . | . . . . . . . . . Exploded 1 | . . 1 1 . . . . 1 Melee 1 | . . . . . . . 1 1 Uniques/NPCs Destroyed . | . . . . . . . . . Combat | -11 -10 -10 -9 -9 -9 -8 -8 -7 -------- Run | Yrd Mat Min Mat Min Exi Min Mat Fac Hostile Shots Fired 843 | . 45 11 35 3 . 17 260 472 Missed 303 | . 13 3 10 . . 9 81 187 Damage Taken 7280 | . 303 109 406 40 . 55 2260 4107 Core 1267 | . 80 23 38 . . 27 388 711 Absorbed by Shields . | . . . . . . . . . Core Remaining (%) 67 | 100 . 58 . . . 83 29 . Volleys Fired 262 | 9 51 12 43 8 . . 76 63 Largest 2 | 2 2 2 2 2 . . 2 1 Hottest 112 | 40 90 90 112 112 . . 88 80 Shots Fired 447 | 18 102 24 79 16 . 13 133 62 Gun 221 | 18 102 24 9 . . 13 47 8 Cannon 210 | . . . 70 16 . . 86 38 Launcher 16 | . . . . . . . . 16 Special . | . . . . . . . . . Kinetic 279 | 18 84 . 8 . . 13 133 23 Thermal 7 | . . . . . . . . 7 Explosive 16 | . . . . . . . . 16 Electromagnetic 145 | . 18 24 71 16 . . . 16 Robot Hit Streak 59 | 4 5 14 16 3 . 6 59 17 Robot Miss Streak 11 | 2 5 1 11 3 . 3 7 2 Penetration Max . | . . . . . . . . . Secondary Targets 1 | . . 1 . . . . . . Max Gunslinging Chain 1 | . . 1 . . . . . . Autonomous 39 | . . . . . . 13 26 . Shots Hit Robots 359 | 11 70 17 58 6 . 8 132 57 Core Hits 249 | 7 31 11 24 4 . 3 116 53 Critical Kills 1 | . . . . . . . 1 . Critical Parts Destroyed 5 | . . . . . . 1 3 1 Critical Strikes 9 | . . . . . . 1 4 4 Destroy 3 | . . . . . . 1 2 . Blast 3 | . . . . . . . . 3 Smash 3 | . . . . . . . 2 1 Melee Attacks 36 | . . . . . . . 20 16 Impact 36 | . . . . . . . 20 16 Slashing . | . . . . . . . . . Piercing . | . . . . . . . . . Sneak Attacks 6 | . . . . . . . 4 2 Combat Hostiles . | . . . . . . . . . Follow-up Attacks . | . . . . . . . . . Damage Inflicted 9694 | 89 764 363 1552 159 . 283 3220 3264 Guns 3069 | 89 764 233 108 . . 283 1320 272 Cannons 3428 | . . . 1200 159 . . 1299 770 Explosions 2214 | . . 130 244 . . . . 1840 Melee 972 | . . . . . . . 590 382 Ramming 11 | . . . . . . . 11 . Kinetic 4229 | 89 602 . 66 . . 283 2619 570 Thermal 768 | . . 130 244 . . . . 394 Explosive 1681 | . . . . . . . . 1681 Electromagnetic 2033 | . 162 233 1242 159 . . . 237 Impact 972 | . . . . . . . 590 382 Slashing . | . . . . . . . . . Piercing . | . . . . . . . . . Highest Corruption 16 | . . . . . . . . 16 Average Corruption 4 | . . . . . . . . 4 Corruption Purged . | . . . . . . . . . Corruption Blocked . | . . . . . . . . . Effects 21 | . . . . . . . . 21 Message Errors 3 | . . . . . . . . 3 Matter Fused 6 | . . . . . . . . 6 Heat Flow Errors 4 | . . . . . . . . 4 Energy Discharges 4 | . . . . . . . . 4 Data Loss (minor) 2 | . . . . . . . . 2 Alerts 1 | . . . . . . . . 1 Weapon Failures 1 | . . . . . . . . 1 Overload Shots . | . . . . . . . . . Overflow Damage 488 | . . . 104 10 . . 214 160 Projectiles 117 | . . . 100 10 . . . 7 Explosions 23 | . . . 4 . . . . 19 Melee 348 | . . . . . . . 214 134 Knockbacks 57 | . . . . . . . 50 7 Impact 3 | . . . . . . . 2 1 Kinetic 48 | . . . . . . . 42 6 Secondary 6 | . . . . . . . 6 . Self-Inflicted Damage 143 | . . . 67 . . . 5 71 Shots 4 | . . . 2 . . . . 2 Rammed 1 | . . . . . . . 1 . Targets Rammed 1 | . . . . . . . 1 . Kicked . | . . . . . . . . . Crushed . | . . . . . . . . . Highest Temperature 432 | . 192 165 211 130 . . 432 201 Average Temperature 73 | . 71 55 57 54 . . 115 43 Received Heat Transfer 1404 | . 63 60 159 15 . . 666 441 Effects 4 | . . . . . . . 4 . Energy Bleed 2 | . . . . . . . 2 . Damage (minor) 2 | . . . . . . . 2 . Siege Activations . | . . . . . . . . . Robots Corrupted 6 | . 1 . 1 . . . 3 1 Combat Hostiles 3 | . 1 . . . . . 2 . Parts Fried 10 | . 1 1 5 . . . 2 1 Impact Corruptions 12 | . . . . . . . 9 3 Robots Melted . | . . . . . . . . . Combat Hostiles . | . . . . . . . . . Parts Melted 1 | . . 1 . . . . . . Heat Transferred 1025 | . . 150 300 . . . . 575 Parts Sabotaged . | . . . . . . . . . Parts Stolen . | . . . . . . . . . Parts Stripped . | . . . . . . . . . Power Chain Reactions 6 | . . 2 4 . . . . . Alert | -11 -10 -10 -9 -9 -9 -8 -8 -7 ------- Run | Yrd Mat Min Mat Min Exi Min Mat Fac Peak Influence 563 | 15 127 69 254 106 . 78 485 563 Initial 135 | . 9 . . 91 . . 29 135 Average 147 | 3 57 29 106 47 . 73 262 259 Maximum Alert Level 2 | . . . 1 . . . 2 2 Low Security (%) 66 | 100 100 100 76 100 . 100 25 42 Level 1 30 | . . . 23 . . . 66 52 Level 2 3 | . . . . . . . 8 5 Level 3 . | . . . . . . . . . Level 4 . | . . . . . . . . . Level 5 . | . . . . . . . . . High Security . | . . . . . . . . . Max Security . | . . . . . . . . . Squads Dispatched 18 | . . . 4 . . . 8 6 Investigation 4 | . . . 1 . . . 2 1 Extermination 3 | . . . . . . . . 3 Reinforcement 6 | . . . 3 . . . 2 1 Assault . | . . . . . . . . . Garrison 5 | . . . . . . . 4 1 Intercept . | . . . . . . . . . Searches Triggered . | . . . . . . . . . Construction Impeded 2 | . . . 1 . . . . 1 Haulers Reinforced . | . . . . . . . . . Active Scanning Responses . | . . . . . . . . . Cargo Convoy Interrupts 1 | . . . . . . . . 1 Stealth | -11 -10 -10 -9 -9 -9 -8 -8 -7 --------- Run | Yrd Mat Min Mat Min Exi Min Mat Fac Distress Signals 5 | . 1 1 2 . . . . 1 Communications Jammed . | . . . . . . . . . Distress Signals . | . . . . . . . . . Times Spotted 151 | . 14 4 28 7 . 4 51 43 Peak Tracking Total 13 | . 3 2 4 3 . 4 6 13 Tactical Retreats 8 | . . . 3 . . . 4 1 Traps | -11 -10 -10 -9 -9 -9 -8 -8 -7 ------- Run | Yrd Mat Min Mat Min Exi Min Mat Fac Traps Triggered 4 | . . . 2 . . . 1 1 Indirectly . | . . . . . . . . . Trap Hack Attempts . | . . . . . . . . . Triggered . | . . . . . . . . . Disarmed . | . . . . . . . . . Reprogrammed . | . . . . . . . . . Reused 2 | . . . 2 . . . . . Traps Extracted . | . . . . . . . . . Installed 3 | . . . 3 . . . . . Triggered 2 | . . . 2 . . . . . Most Traps Carried 3 | . . 3 3 . . . . . Objects Rigged 32 | . . . . . . . 28 4 Exploded 13 | . . . . . . . 10 3 Machines | -11 -10 -10 -9 -9 -9 -8 -8 -7 ---------- Run | Yrd Mat Min Mat Min Exi Min Mat Fac Machines Disabled 14 | . . 1 . . . . . 13 Max in Single Turn 6 | . . 1 . . . . . 6 Machines Repaired . | . . . . . . . . . Machines Dismantled . | . . . . . . . . . Machines Sabotaged . | . . . . . . . . . Overloaded Fab Kills . | . . . . . . . . . Hacking | -11 -10 -10 -9 -9 -9 -8 -8 -7 --------- Run | Yrd Mat Min Mat Min Exi Min Mat Fac Machines Accessed 32 | . 7 1 8 . 2 . 9 5 Terminals 25 | . 7 1 6 . . . 8 3 Fabricators 1 | . . . . . . . . 1 Repair Stations . | . . . . . . . . . Recycling Units . | . . . . . . . . . Scanalyzers 3 | . . . 2 . . . . 1 Garrison Access 1 | . . . . . . . 1 . Total Hacks 122 | . 27 2 23 . 24 . 32 14 Successful 70 | . 12 1 14 . 24 . 13 6 Failed 52 | . 15 1 9 . . . 19 8 Catastrophic 6 | . 1 1 . . . . 2 2 Database Lockouts . | . . . . . . . . . Manual 60 | . 24 1 12 . 1 . 15 7 Terminals 84 | . 27 2 17 . . . 29 9 Fabricators 1 | . . . . . . . . 1 Repair Stations . | . . . . . . . . . Recycling Units . | . . . . . . . . . Scanalyzers 10 | . . . 6 . . . . 4 Garrison Access 3 | . . . . . . . 3 . Terminal Hacks 40 | . 5 1 3 . 24 . 7 . Record 23 | . . . . . 23 . . . Robot Analysis 4 | . 2 . 2 . . . . . Prototype ID Bank 3 | . 1 . . . . . 2 . Machine Index 1 | . . . . . . . 1 . Terminal Index 1 | . . . . . . . 1 . Unreport Threat 2 | . 1 . . . . . 1 . Locate Traps 2 | . . . 1 . . . 1 . Dispatch Records 1 | . . 1 . . . . . . Zone Layout 2 | . 1 . . . . . 1 . Derelict Proto ID Bank 1 | . . . . . 1 . . . Fabricator Hacks 1 | . . . . . . . . 1 Build 1 | . . . . . . . . 1 Repair Station Hacks . | . . . . . . . . . Recycling Unit Hacks . | . . . . . . . . . Scanalyzer 8 | . . . 5 . . . . 3 Insert Component 5 | . . . 3 . . . . 2 Analyze 3 | . . . 2 . . . . 1 Garrison Access Hacks . | . . . . . . . . . Unauthorized Hacks 21 | . 7 . 6 . . . 6 2 Terminals 21 | . 7 . 6 . . . 6 2 Botnet 3 | . 2 . . . . . 1 . Skim 18 | . 5 . 6 . . . 5 2 Fabricators . | . . . . . . . . . Repair Stations . | . . . . . . . . . Recycling Units . | . . . . . . . . . Scanalyzers . | . . . . . . . . . Garrison Access . | . . . . . . . . . Data Cores Recovered 1 | . . . 1 . . . . . Used . | . . . . . . . . . Hacking Detections 29 | . 7 1 8 . . . 9 4 Full Trace Events 5 | . . . 2 . . . 2 1 Feedback Events . | . . . . . . . . . Feedback Blocked . | . . . . . . . . . Robot Schematics Acquired . | . . . . . . . . . Robots Built . | . . . . . . . . . Authchips . | . . . . . . . . . Time . | . . . . . . . . . Total Robot Build Rating . | . . . . . . . . . Part Schematics Acquired 3 | . . . 2 . . . . 1 Parts Built 2 | . . . . . . . . 2 Authchips . | . . . . . . . . . Time 117 | . . . . . . . . 117 Total Part Build Rating 14 | . . . . . . . . 14 Parts Repaired . | . . . . . . . . . Time . | . . . . . . . . . Parts Recycled . | . . . . . . . . . Recycled Matter . | . . . . . . . . . Retrieved Matter . | . . . . . . . . . Retrieved Components . | . . . . . . . . . Parts Scanalyzed 3 | . . . 2 . . . . 1 Part Schematics Acquired 3 | . . . 2 . . . . 1 Parts Damaged . | . . . . . . . . . Bothacking | -11 -10 -10 -9 -9 -9 -8 -8 -7 ------------ Run | Yrd Mat Min Mat Min Exi Min Mat Fac Used RIF Installer . | . . . . . . . . . Robots Hacked . | . . . . . . . . . Non-combat . | . . . . . . . . . Combat . | . . . . . . . . . Robot Hacks Applied . | . . . . . . . . . Relay Couplers Released . | . . . . . . . . . Fabnet Peak Effective % . | . . . . . . . . . Robots Rewired . | . . . . . . . . . Allies Hacked . | . . . . . . . . . Hacks Repelled . | . . . . . . . . . Allies | -11 -10 -10 -9 -9 -9 -8 -8 -7 -------- Run | Yrd Mat Min Mat Min Exi Min Mat Fac Total Allies 4 | . . 4 . . . . . . Largest Group 3 | . . 3 3 . . . . . Highest-Rated Group 40 | . . 40 40 . . . . . Highest-Rated Ally 31 | . . 31 16 . . . . . Total Orders . | . . . . . . . . . Ally Attacks 40 | . . . 40 . . . . . Total Damage 471 | . . . 471 . . . . . Kills 9 | . . . 9 . . . . . Allies Corrupted . | . . . . . . . . . Allies Melted . | . . . . . . . . . Intel | -11 -10 -10 -9 -9 -9 -8 -8 -7 ------- Run | Yrd Mat Min Mat Min Exi Min Mat Fac Robot Analysis Total 3 | . 2 . 1 . . . . . Derelict Logs Recovered 2 | . . 1 . 1 . . . . Drone Launches . | . . . . . . . . . Drone Recoveries . | . . . . . . . . . Exploration | -11 -10 -10 -9 -9 -9 -8 -8 -7 ------------- Run | Yrd Mat Min Mat Min Exi Min Mat Fac Turns Passed 11500 | 118 1437 1005 2396 1227 616 272 2881 1548 Spaces Moved 5298 | 54 656 558 1162 607 320 137 1187 617 Core 4 | 4 . . . . . . . . Treads 391 | 48 . . . . . . 129 214 Legs . | . . . . . . . . . Wheels 4903 | 2 656 558 1162 607 320 137 1058 403 Hover . | . . . . . . . . . Flight . | . . . . . . . . . Fastest Speed 50 | 50 100 145 175 175 175 190 175 112 Average Speed 183 | 149 153 164 184 189 189 190 193 201 Slowest Speed 560 | 160 175 175 190 190 190 190 560 490 Overloaded Moves . | . . . . . . . . . Propulsion Burnouts . | . . . . . . . . . Robots Hopped . | . . . . . . . . . Cave-ins Triggered . | . . . . . . . . . Time Travels 1 | . . . . . . . 1 . Exploration Rate (%) 62 | 4 91 98 83 98 75 24 72 15 Regions Visited 8 Branch Regions 4 Pre-discovered Areas 2 | . . . 1 . 1 . . . Known Exits Taken 5 | . . 1 1 1 . 1 1 . Unknown Exits Taken 3 | 1 1 . . . 1 . . . Scrap Searched 4 | . . 1 . 2 . 1 . . Spaces Dug 9 | . . . . . . . 7 2 Terrain Destroyed 158 | . . 8 14 . . 11 12 113 Melee 9 | . . . . . . . 7 2 Projectile 16 | . . . . . . 11 5 . AOE 133 | . . 8 14 . . . . 111 Terrain Rammed . | . . . . . . . . . Walls Destroyed . | . . . . . . . . . Machines Disabled . | . . . . . . . . . Actions | -11 -10 -10 -9 -9 -9 -8 -8 -7 --------- Run | Yrd Mat Min Mat Min Exi Min Mat Fac Total 6643 | 73 996 623 1335 673 330 150 1632 831 Wait 657 | . 234 45 77 44 . 10 196 51 Move 5290 | 53 655 557 1161 606 319 136 1186 617 Hop . | . . . . . . . . . Pick Up 111 | 4 28 4 15 5 3 1 33 18 Fast Attach 43 | 7 4 . 9 . 1 1 12 9 Attach 36 | . . . 4 1 . . 15 16 Detach 3 | . . . . . . . 1 2 Swap 60 | . 7 3 8 2 2 . 26 12 Drop 109 | . 17 2 15 7 5 2 38 23 Fire 262 | 9 51 12 43 8 . . 76 63 Melee 36 | . . . . . . . 20 16 Ram 1 | . . . . . . . 1 . Kick . | . . . . . . . . . Crush . | . . . . . . . . . Escape Stasis . | . . . . . . . . . Rewire . | . . . . . . . . . Trap 35 | . . . 3 . . . 28 4 Miscellaneous . | . . . . . . . . . Route ------- -11/Scrapyard -10/Materials (discovered 6 exits: *Mat x3 / *Min x2 / Sub) -10/Mines (discovered 3 exits: *Mat x2 / *Sub) -9/Materials (discovered 6 exits: *Mat x3 / *Min x2 / *Sto) -9/Mines (discovered 3 exits: *Mat x2 / *Exi) -9/Exiles -8/Mines -8/Materials (discovered 3 exits: *Fac x3) -7/Factory History --------- Turn | Location | Event 6 | -11/Scrapyard | Discovered new exit (range 16) 119 | -11/Scrapyard | Entered Materials 306 | -10/Materials | Build established: Mutant 389 | -10/Materials | Discovered new exit (range 17) 514 | -10/Materials | Discovered new exit (range 12) 879 | -10/Materials | Discovered new exit (range 18) 986 | -10/Materials | Discovered new exit (range 4) 1162 | -10/Materials | Learned location of 2 exits from Mines 1229 | -10/Materials | Learned location of 2 exits from Mines 1285 | -10/Materials | Learned 2 Mines zone layouts 1285 | -10/Materials | Discovered new exit (range 18) 1333 | -10/Materials | Learned Storage trap positions 1372 | -10/Materials | Learned location of 1 exit from Recycling 1402 | -10/Materials | Learned Storage garrison access intel 1496 | -10/Materials | Identified exit to Subcaves 1556 | -10/Materials | Entered Mines 1557 | -10/Mines | Identified exit to Materials 1685 | -10/Mines | Received a Mining Laser from a helpful Derelict 1887 | -10/Mines | Found a hidden stash of uninstalled traps 1991 | -10/Mines | Learned Materials non-interactive machine intel 2314 | -10/Mines | Assisted by bots powering up and referring to "LRC-V3" 2561 | -10/Mines | Entered Materials 2561 | -9/Materials | Accompanied by 3 allies 2561 | -9/Materials | Evolved 2 slots: Propulsion x1, Utility x1 2562 | -9/Materials | Identified exit to Materials 2562 | -9/Materials | Identified exit to Storage 2563 | -9/Materials | Loaded intel: 36 non-interactive machine locations 2867 | -9/Materials | Build established: Scavenger-Mutant 3274 | -9/Materials | Discovered exit to Materials (range 8) 3698 | -9/Materials | Build established: Mutant 4262 | -9/Materials | Discovered new exit (range 10) 4474 | -9/Materials | Learned location of Zion (-6) 4520 | -9/Materials | Identified exit to Mines 4558 | -9/Materials | Loaded intel: 24 trap records 4606 | -9/Materials | Learned location of 2 exits from Materials 4615 | -9/Materials | Learned 2 Materials zone layouts 4957 | -9/Materials | Entered Mines 4958 | -9/Mines | Identified exit to Exiles 4961 | -9/Mines | Joined a pair of Derelicts in attacking an 0b10 outpost 4973 | -9/Mines | Met a Derelict bent on vengeance 5101 | -9/Mines | Deemed a non-threat by the Exiles lab entrance 5233 | -9/Mines | Assembled infested the area 5238 | -9/Mines | Assisted by a Guerilla fighting off Assembled 5798 | -9/Mines | Received a Rocket Launcher from a helpful Derelict 6184 | -9/Mines | Entered Exiles 6230 | -9/Exiles | Met 8R-AWN 6262 | -9/Exiles | Met EX-HEX 6342 | -9/Exiles | Met EX-BIN 6365 | -9/Exiles | Aligned with FarCom system 6367 | -9/Exiles | Given EX-Vault access code 6411 | -9/Exiles | Opened EX-Vault 6421 | -9/Exiles | Found PSU Rigger 6426 | -9/Exiles | Found Chronowheel 6437 | -9/Exiles | Found AWS/Gauss 6479 | -9/Exiles | Warned to stay clear of 0b10 Research branches 6534 | -9/Exiles | Met EX-DEC 6592 | -9/Exiles | Visited The Gauntlet 6774 | -9/Exiles | Discovered new exit (range 14) 6800 | -9/Exiles | Stole three prototypes: AWS/Gauss, PSU Rigger, Chronowheel 6800 | -9/Exiles | Entered Mines 6952 | -8/Mines | Discovered exit to Materials (range 5) 7072 | -8/Mines | Entered Materials 7072 | -8/Materials | Evolved 2 slots: Utility x2 7073 | -8/Materials | Identified exit to Factory 7568 | -8/Materials | Garrison activated, responded to threat 7598 | -8/Materials | AWS/Gauss suddenly broke down 7678 | -8/Materials | Garrison activated, responded to threat 7682 | -8/Materials | Build established: Scavenger-Mutant 7955 | -8/Materials | Activated Chronowheel 7955 | -8/Materials | Spacetime reconverged on an earlier point 8408 | -8/Materials | Discovered exit to Factory (range 11) 8487 | -8/Materials | Build established: Mutant 9560 | -8/Materials | Core integrity fell below 50% 9953 | -8/Materials | Entered Factory 9953 | -7/Factory | Evolved 2 slots: Utility x2 9955 | -7/Factory | FarCom data flow suspended 10249 | -7/Factory | Build established: Assassin 10534 | -7/Factory | Fabricated Centrium Wheel? 10793 | -7/Factory | Build established: Hacker-Mutant 11025 | -7/Factory | Core integrity fell below 50% 11456 | -7/Factory | Cargo convoy interrupted 11461 | -7/Factory | Garrison activated, responded to threat 11476 | -7/Factory | System corruption reached 10% 11484 | -7/Factory | Core integrity fell below 20% 11501 | -7/Factory | Destroyed by X-57 Shotgunner with High-powered Shotgun Last Messages --------------- 11491_ U-05 Engineer builds a Wall. 11492_ U-05 Engineer lays Concrete. 11492_ U-05 Engineer builds a Wall. 11492_ M-28 Smith destroyed. 11493_ U-05 Engineer lays Concrete. 11494_ System corrupted: Matter fused (-10). 11494_ U-05 Engineer lays Concrete. 11494_ P-60 Hacker destroyed. 11494_ R-06 Scavenger collects Corrupted Lgt. Nuclear Core. 11494_ Gatling Laser destroyed. 11495_ U-05 Engineer builds a Wall. 11495_ U-05 Engineer lays Concrete. 11495_ X-57 Shotgunner destroyed. 11496_ U-05 Engineer lays Concrete. 11496_ U-05 Engineer builds a Wall. 11497_ U-05 Engineer lays Concrete. 11498_ Arm. Huge Wheel destroyed. 11499_ Door malfunctions. 11499_ R-06 Scavenger collects Corrupted Autogun. 11500_ U-05 Engineer lays Concrete. Map ----- +----------------------------------------------------+ | #????????????????????? | | ##############???????? | | = [#%= * #???????? | | """""" % ! #%""""" #???????? | | # ""T"" #???????? | | """""" # #???????? | | # ! ##??????? | | """""" # [ #??????? | | + !##??????? | | """""" =! # =##??????? | | [ / # ##??????? | | ^ ! ! # #""" ???? | | ###+##############+#### # #""" T" | | [ # # # #"T """ | | # # r#####u#####+##""" ? | | """ """ # """ """ / = ## # ###"" | | """ """ # """ """ # %[# = !# # ###"" | | """ """ # """ """ # # = ### ##### | | # # % g g %= | | # ! # p #*## ########+? | | ] # # *% x # #+#####????? | | ########## !] # w ! #????? | | T"""###### ! # =!*| # """" #????? | | + + ==%%* # """" #????? | | ## # %==*| # """" #????? | | " """ ###########"""# @ |%*u # """" #????? | | " """ ##???????##"""###;#/=!%*= # """" #????? | | " """ ##???????# " !=%= # """" ?????? | | [###??????# " # # """" #????? | | ###??????##" %+ +% #????? | | # ??????# " # ##########????? | | * # ??????# # # #?????????????? | | F"! # ??????### # % #?????????????? | | " # ???????## # #?????????????? | | ## # ???????## # #?????????????? | | # # ????????########### ????????????? | | # + ??????????????????+ ^ ???????????? | | # # ????????????????# """""??????????? | | # ## ???????????????# """"""?????????? | | ## ## ?? ???????????????# """"""?????????? | | # ##???????????????????# ""?????????????? | | ?# ^ ^##???????????????????# "??????????????? | | ?# ^ ##???????????????????# "??????????????? | | ?# ##???????????????????# ??????????????? | | ?+ ???????????????????# ??????????????? | | ?# ???????????????????# ??????????????? | | ?# ??????????????????? ??????????????? | | ?? #??????????????????????????????????????? | | ??+## ???????????????????????????????????????? | | ?????##??????????????????????????????????????????? | +----------------------------------------------------+ Best States ------------- Heat Dissipation 34 Energy Generation 17 Energy Capacity 300 Matter Stores 300 Matter Capacity 300 Sight Range 18 Robot Scan Range 15 Terrain Scan Density 10 Armor Coverage 375 Phase Shifting 5 Evasion (%) 45 Targeting Accuracy 14 Recoil Reduction 3 Offensive Hacking 10 Defensive Hacking 10 Item Schematics ----------------- Hcp. Storage Unit | -9/Materials | Scanalyzed Plasma Cutter | -9/Materials | Scanalyzed Huge Storage Unit | -7/Factory | Scanalyzed Robot Schematics ------------------ None Fabricated ------------ Centrium Wheel | x2 | -7/Factory | Preloaded Alien Tech Used ----------------- None Achievements -------------- None Challenges ------------ None Game ------ Seed FlightWeightSystem Manual? 0 Play Time 01:28:45 Cumulative 42.1 hours Start 2024.08.31 @ 17:54:59 End 2024.08.31 @ 19:23:56 Sessions 1 Manual Loads 0 Difficulty Rogue Special Mode None Game No. 29 Rogue 29 Adventurer 0 Explorer 0 Win Type - Total 0 Types 0/0/0/0/0/0/0/0/0 Lore% 33 Gallery% 45 Achievement% 39 Wizard Run 0 Options --------- Layout 0 ASCII 0 Keyboard 0 Movement Mouse Keybinds 0 Fullscreen 1 Font 24/Smallcaps Map View 183x50 Zoom Use 0% Tactical HUD 1 Map Filters NONE Filters NONE Steam 0 RUN: 75d6b9db-525e-473d-9284-af6a9d71005d